Cogmind - Beta 15 @@@ ROGUE MODE // 2025.05.10 @ 20:15:22 Player: MolePlayingNice Result: Destroyed by P-80 Master with Gamma Rifle Performance ------------- Evolutions (7) 3500 Regions Visited (24) 4800 Robots Destroyed (399) 1995 Value Destroyed (19758) 19758 Prototype IDs (77) 1540 Alien Tech Used (4) 800 Bonus (10239) 10239 TOTAL SCORE: 42632 Bonus ------- High Alert Combat Kills 3691 Follower Combat Kills 2606 Registered with UFD 300 Met Optimus in HQ 500 Met Data Miner 300 Met Zhirov 300 Built Enhanced Grunts 300 A7 Reached Mainframe 300 Met R17 at Cetus 500 Met R17 at Research 2000 Friendly Fire -558 Cogmind --------- Core Integrity 0/1300 Matter 195/300 Energy 100/100 System Corruption 32% Temperature Cool (0) Movement Core (300) Ox5 Location -3/Protoforge Parts ------- > --- POWER (2) -------- (None) > --- PROPULSION (5) --- (None) > --- UTILITY (10) ----- Graphene Brace > --- WEAPON (4) ------- Concept Variable Chargecaster Concept Variable Chargecaster > --- INVENTORY (5) ---- Experimental Force Field A0-MCA's Component Scanner Dimensional Node Initializer Subatomic Replicator CPS Tube (2) Peak State ------------ > --- POWER ------------ Vortex Chain Reactor > --- PROPULSION ------- Myomer Leg Myomer Leg Biometal Leg High-density Centrium Leg High-density Centrium Leg > --- UTILITY ---------- Coolant Network High-capacity Storage Unit Advanced Energy Well Advanced Salvage Targeting Computer Expert System Centrium Heavy Armor Plating Thermal Barrier Advanced Force Field > --- WEAPON ----------- Quantum Rifle Quantum Rifle Core Stripper > --- INVENTORY -------- Particle Reactor Myomer Leg Experimental Cooling System Centrium Medium Armor Plating Centrium Medium Armor Plating A0-MCA's Component Scanner Dimensional Node Initializer Transdimensional Reconstructor Subatomic Replicator Wave Gun Advanced Variable Charge Gun Quantum Rifle Quantum Rifle Heavy Quantum Rifle Advanced KE Penetrator Multirail Long-range Missile Launcher Advanced Remote Datajack CPS Tube Botcube [Rating: 200] Favorites ----------- Power Quantum Reactor Engine Makeshift Power Source Power Core Neutrino Core Reactor Quantum Reactor Propulsion Myomer Leg Leg Myomer Leg Wheel Armored Wheel Hover Unit Cooled Aerolev Unit Flight Unit Improved Flight Unit Utility High-capacity Storage Unit Device Advanced Heat Sink Storage High-capacity Storage Unit Processor Advanced Salvage Targeting Computer Hackware Hacking Suite Protection Centrium Medium Armor Plating Weapon Spread Laser Energy Gun Spread Laser Energy Cannon Cooled Plasma Cannon Ballistic Gun Hypervelocity Gauss Rifle Ballistic Cannon Gauss Cannon Launcher Micro-nuke Launcher Special Weapon Improved Remote Datajack Impact Weapon Core Stripper Slashing Weapon Katana Special Melee Weapon Improved Datajack Build | -11 -10 -10 -9 -9 -9 -9 -6 -6 -6 -6 -5 -5 -5 -5 -5 -5 -4 -4 -4 -4 -3 -3 -3 -3 ------- Run | Yrd Mat Min Mat Sto Rec Scr Fac Low Low Dat Pro Fac Ext Cet Arc Hub Fac Upp Upp Zhi Pro Res Qua Frg Slots Evolved 14 | . . . 2 . . . 6 . . . . 2 . . . . 2 . . . . 2 . . Power 1 | . . . . . . . . . . . . . . . . . 1 . . . . . . . Propulsion 3 | . . . 1 . . . 1 . . . . 1 . . . . . . . . . . . . Utility 8 | . . . 1 . . . 3 . . . . 1 . . . . 1 . . . . 2 . . Weapon 2 | . . . . . . . 2 . . . . . . . . . . . . . . . . . Parts Attached 375 | . 7 3 15 21 4 16 61 10 1 . 6 10 29 5 . 22 51 7 . 5 8 23 49 22 Power 43 | . 1 . 2 4 . . 8 2 . . . 1 3 1 . 2 3 . . 1 2 3 9 1 Engine 11 | . 1 . 2 3 . . 5 . . . . . . . . . . . . . . . . . Core 9 | . . . . . . . 3 2 . . . 1 3 . . . . . . . . . . . Reactor 23 | . . . . 1 . . . . . . . . . 1 . 2 3 . . 1 2 3 9 1 Propulsion 88 | . . 1 5 5 . 7 15 1 . . 1 . 10 . . 7 8 4 . . 2 2 11 9 Treads . | . . . . . . . . . . . . . . . . . . . . . . . . . Leg 77 | . . 1 5 3 . 3 11 1 . . 1 . 10 . . 7 8 4 . . 2 2 11 8 Wheel 4 | . . . . . . 1 2 . . . . . . . . . . . . . . . . 1 Hover 2 | . . . . 1 . . 1 . . . . . . . . . . . . . . . . . Flight 5 | . . . . 1 . 3 1 . . . . . . . . . . . . . . . . . Utility 134 | . 3 1 5 6 2 3 22 3 1 . 5 5 9 3 . 5 19 2 . 4 2 13 18 3 Device 77 | . 1 1 4 4 . 1 11 1 . . 3 3 2 . . 3 14 2 . 3 2 10 11 1 Storage 7 | . 1 . . . 2 . 1 . . . . 1 . . . . 1 . . . . . 1 . Processor 15 | . . . . . . 1 4 1 . . 1 . 1 1 . . 2 . . . . 1 2 1 Hackware 3 | . . . . . . . 1 . . . . . . . . 1 . . . . . 1 . . Protection 32 | . 1 . 1 2 . 1 5 1 1 . 1 1 6 2 . 1 2 . . 1 . 1 4 1 Artifact . | . . . . . . . . . . . . . . . . . . . . . . . . . Weapon 110 | . 3 1 3 6 2 6 16 4 . . . 4 7 1 . 8 21 1 . . 2 5 11 9 Energy Gun 79 | . 3 1 3 5 1 1 7 1 . . . 1 6 1 . 6 18 1 . . 2 5 9 8 Energy Cannon 3 | . . . . . . . 2 . . . . 1 . . . . . . . . . . . . Ballistic Gun 16 | . . . . 1 . 3 5 3 . . . 1 . . . 2 . . . . . . 1 . Ballistic Cannon 2 | . . . . . . 1 1 . . . . . . . . . . . . . . . . . Launcher 3 | . . . . . . . . . . . . . 1 . . . 2 . . . . . . . Special Weapon 3 | . . . . . . 1 . . . . . . . . . . 1 . . . . . . 1 Impact Weapon 1 | . . . . . . . . . . . . . . . . . . . . . . . 1 . Slashing Weapon 2 | . . . . . 1 . . . . . . 1 . . . . . . . . . . . . Piercing Weapon . | . . . . . . . . . . . . . . . . . . . . . . . . . Special Melee Weapon 1 | . . . . . . . 1 . . . . . . . . . . . . . . . . . Unidentified Prototypes 57 | . . . 1 8 . . 7 . . . . 3 . 3 . 3 6 . . 2 . 2 18 4 Corrupted Parts 5 | . . . . . . . . . . . . . . . . 5 . . . . . . . . System Corruption 13 | . . . . . . . . . . . . . . . . 13 . . . . . . . . Parts Lost 81 | . 3 1 3 1 . . 13 6 . . . . 2 1 . 4 13 2 . . 5 . 5 22 Power 8 | . . . 1 . . . 1 . . . . . . . . . 2 . . . 1 . 1 2 Propulsion 25 | . . . 2 1 . . 6 2 . . . . 1 . . . 5 . . . 1 . 1 6 Utility 20 | . 1 1 . . . . 2 . . . . . . . . . 5 2 . . 2 . 2 5 Weapon 28 | . 2 . . . . . 4 4 . . . . 1 1 . 4 1 . . . 1 . 1 9 Highest Loss Streak 14 | . 1 1 2 1 . . 4 2 . . . . 2 1 . 2 4 2 . . 3 . 2 14 To Critical Strikes 1 | . . . . . . . . . . . . . . 1 . . . . . . . . . . Average Backups 16 | . 12 14 13 13 14 15 16 16 16 16 16 16 17 18 19 18 18 18 19 18 17 18 18 15 Power 1 | . 1 2 1 1 1 1 1 1 3 3 3 2 1 1 2 2 1 1 1 1 . . . . Propulsion 2 | . 4 4 3 5 6 3 2 1 1 1 1 . 1 2 2 2 1 2 3 2 1 1 1 1 Utility 5 | . 1 1 2 1 1 4 5 5 6 6 6 6 6 6 7 7 5 6 5 5 5 8 6 5 Weapon 5 | . 3 5 5 5 5 5 3 4 3 3 3 4 5 6 6 4 9 7 7 6 5 4 5 3 Tool/Special . | . . . . . . . . . . . . . . . . . . . . . . . . . Unused Backups 80 | . 9 5 10 5 . 6 10 . . . . 2 4 4 . 4 5 . . . 1 4 1 10 Power 9 | . 1 . 2 1 . . . . . . . . 1 2 . . . . . . . . 1 1 Propulsion 14 | . 2 4 4 . . . . . . . . . 1 . . 1 1 . . . . . . 1 Utility 19 | . 1 . 1 1 . 1 3 . . . . 1 1 . . 1 1 . . . . 4 . 4 Weapon 32 | . 5 1 3 2 . 4 6 . . . . 1 1 2 . 2 3 . . . 1 . . 1 Tool/Special 6 | . . . . 1 . 1 1 . . . . . . . . . . . . . . . . 3 Average Slot Usage (%) 93 | . 99 99 96 99 100 94 95 91 93 70 88 87 91 93 94 94 98 99 100 93 95 97 94 64 Engine 4 | . 14 14 11 11 11 9 3 5 . . . . . . . . . . . . . . . . Reactor 3 | . . . . . . . . . . . . . . 3 5 5 9 10 10 9 9 9 8 2 Leg 24 | . 28 28 32 32 33 28 23 18 20 20 20 23 22 23 23 23 25 26 26 26 25 22 22 11 Device 14 | . 9 13 18 18 11 11 10 15 13 13 12 10 12 11 11 10 15 15 15 15 20 25 19 17 Storage 7 | . 14 14 11 11 11 10 6 6 6 6 6 5 5 5 5 5 5 5 5 5 5 4 4 5 Processor 6 | . . . . . . . 12 13 13 13 9 5 8 11 11 11 10 10 10 10 10 9 9 6 Protection 7 | . 3 . . 3 11 8 7 3 5 6 5 10 10 11 11 10 8 9 10 9 2 1 8 2 Energy Gun 17 | . 28 28 22 21 21 13 14 19 6 . 6 4 17 22 22 21 20 21 21 13 20 19 18 13 Ballistic Gun 3 | . . . . . . 7 9 6 20 3 20 18 5 . . 1 . . . . . . . . Peak Build Rating 200 | . 8 12 28 34 26 33 74 73 73 68 74 90 93 112 112 128 147 141 140 141 140 150 200 192 Average Rating 87 | . 7 9 20 25 25 24 61 69 72 55 72 84 91 104 111 118 137 138 140 131 125 142 177 147 On Entrance 81 | 6 6 8 12 25 29 25 27 70 73 72 68 74 89 91 112 112 128 141 140 140 140 122 150 187 Naked Turns . | . . . . . . . . . . . . . . . . . . . . . . . . . Heaviest Build 143 | 12 30 31 37 43 58 58 89 84 82 76 102 107 107 97 100 99 123 116 115 117 111 114 141 143 Greatest Support 149 | 20 20 20 43 38 36 36 68 66 66 66 71 86 91 86 86 140 140 131 128 128 125 121 142 149 Greatest Overweight (x) 17 | . 1 1 1 1 1 4 7 2 1 1 1 1 1 1 1 1 1 . . . 1 1 1 17 Average Overweight (x) . | . . 1 . . 1 1 1 1 1 . 1 1 . . 1 . . . . . . . . 1 Largest Inventory Capacity 20 | . 15 15 15 15 20 20 20 20 20 20 20 20 20 20 20 20 20 20 20 20 20 20 20 20 Average Capacity 19 | . 13 15 15 15 17 18 20 20 20 20 20 20 20 20 20 20 20 20 20 20 20 20 20 19 Most Carried 20 | . 15 15 15 15 17 20 20 20 19 20 20 20 20 20 20 20 20 20 20 20 20 20 20 20 Average Carried 18 | . 12 14 14 14 15 17 19 19 19 19 19 19 19 19 20 19 19 19 20 19 18 19 19 17 Final Capacity 20 | 8 15 15 15 15 20 20 20 20 20 20 20 20 20 20 20 20 20 20 20 20 20 20 20 5 Final Carried 20 | 6 14 15 15 15 16 20 20 19 19 20 20 20 20 20 20 20 20 20 20 20 18 20 20 5 Class Distribution -------------------- 45% | Scavenger-Tank 22% | Commander-Mutant 8% | Scavenger-Gunner 7% | Scavenger-Skirmisher 6% | Mutant 5% | Scavenger-Mutant Dominant Class ---------------- Mutant | -10/Materials Mutant | -10/Mines Scavenger-Mutant | -9/Materials Scavenger-Mutant | -9/Storage Commander-Mutant | -9/Recycling Commander-Mutant | -9/Scraptown Scavenger-Gunner | -6/Factory Scavenger-Skirmisher | -6/Lower Caves Scavenger-Skirmisher | -6/Lower Caves Scavenger-Mutant | -6/Data Miner Gunner | -5/Proximity Caves Scavenger-Tank | -5/Factory Scavenger-Tank | -5/Extension Scavenger-Tank | -5/Cetus Scavenger-Tank | -5/Archives Scavenger-Tank | -5/Hub_04(d) Scavenger-Tank | -4/Factory Scavenger-Tank | -4/Upper Caves Scavenger-Tank | -4/Upper Caves Scavenger-Tank | -4/Zhirov Gunner | -3/Proximity Caves Tank | -3/Research Scavenger-Tank | -3/Quarantine Scavenger-Tank | -3/Protoforge Resources | -11 -10 -10 -9 -9 -9 -9 -6 -6 -6 -6 -5 -5 -5 -5 -5 -5 -4 -4 -4 -4 -3 -3 -3 -3 ----------- Run | Yrd Mat Min Mat Sto Rec Scr Fac Low Low Dat Pro Fac Ext Cet Arc Hub Fac Upp Upp Zhi Pro Res Qua Frg Matter Collected 8837 | 200 60 92 162 270 50 286 1506 501 30 . 236 205 1145 45 . 311 1148 135 . 165 295 329 1117 549 Remotely . | . . . . . . . . . . . . . . . . . . . . . . . . . Salvage Created 22454 | . 504 167 402 806 287 79 2470 937 . . 214 192 3357 160 . 1151 3519 334 204 465 754 295 4178 1979 Parts 941 | . 33 14 34 51 6 3 103 32 . . 6 8 117 3 . 35 118 11 15 13 22 12 197 108 Haulers Intercepted 18 | . 2 . 1 5 1 . 3 . . . . 1 . . . 3 1 . . . . 1 . . Recyclers Shooed 18 | . . . . . . . 6 . . . . 1 1 . . 1 7 . . . . . 2 . Parts Field Recycled . | . . . . . . . . . . . . . . . . . . . . . . . . . Retrieved Matter . | . . . . . . . . . . . . . . . . . . . . . . . . . Parts Self-Destructed 99 | . . . . . . . . 38 6 . 6 . . . . . . 8 14 8 19 . . . Prevented 1 | . . . . . . . . . . . . . . . . . . . 1 . . . . . Kills | -11 -10 -10 -9 -9 -9 -9 -6 -6 -6 -6 -5 -5 -5 -5 -5 -5 -4 -4 -4 -4 -3 -3 -3 -3 ------- Run | Yrd Mat Min Mat Sto Rec Scr Fac Low Low Dat Pro Fac Ext Cet Arc Hub Fac Upp Upp Zhi Pro Res Qua Frg Combat Hostiles Destroyed 320 | . 10 6 17 14 3 . 41 14 . . 3 1 43 2 . 16 62 4 3 . 14 . 44 23 Melee 2 | . . . . . . . . . . . . . . . . . 1 . . . . . 1 . Guns 268 | . 7 5 14 14 3 . 39 14 . . 3 1 37 2 . 16 42 2 3 . 4 . 41 21 AOE 34 | . 3 . 3 . . . . . . . . . 3 . . . 14 . . . 9 . . 2 Classes Destroyed 26 | . 5 . 3 1 3 . 6 1 . . . . . . . 1 3 . . . . . 2 1 Worker 14 | . . . 2 . . . 1 . . . . . . . . 2 2 . . . . . 4 3 Builder 7 | . 2 . . . . . 1 . . . . . 1 . . . 1 . . . . . . 2 Tunneler 2 | . . . . . . . 1 . . . . . . . . . 1 . . . . . . . Hauler 20 | . 2 . 1 5 1 2 3 . . . . 1 . . . 3 1 . . . . 1 . . Recycler 13 | . . . . 1 1 . 1 . . . . . 2 . . . 6 . . . . 1 1 . Mechanic 5 | . . . . . . . 2 . . . . . . . . . . . . . 1 . . 2 Operator 2 | . . . . . . . . . . . . . . . . . 1 . . . . 1 . . Drone 5 | . . . . . . . . . . . . . . . . . . . . . . . . 5 Watcher 14 | . 2 . 1 2 . . . . . . . . 1 . . . 1 . . . . . 2 5 Swarmer 49 | . 3 3 9 . . . 12 . . . 1 . 3 . . . 14 . . . 2 . . 2 Saboteur 3 | . . . . . . . . . . . . . . . . . 1 . . . . . 2 . Grunt 118 | . 7 3 5 9 . . 16 8 . . 1 . 24 . . 5 15 . . . 8 . 11 6 Brawler 10 | . . . . . . . 2 3 . . . . . . . . 2 . . . 2 . 1 . Duelist 8 | . . . 1 . . . . 1 . . . . 1 . . . 2 . . . 1 . 2 . Sentry 41 | . . . 2 5 1 . 6 2 . . 1 1 9 . . . 6 . 1 . 1 . 4 2 Demolisher 2 | . . . . . 1 . . . . . . . 1 . . . . . . . . . . . Specialist 3 | . . . . . . . . . . . . . . . . 3 . . . . . . . . Hunter 21 | . . . . . 1 . 1 . . . . . . . . 2 6 4 . . . . 7 . Programmer 40 | . . . . . 1 . 3 . . . . . . . . 5 14 . 2 . . . 15 . Heavy 1 | . . . . . . . 1 . . . . . . . . . . . . . . . . . Behemoth 3 | . . . . . . . 1 . . . . . 2 . . . . . . . . . . . Cetus Guard 2 | . . . . . . . . . . . . . . 2 . . . . . . . . . . Enhanced Grunt 1 | . . . . . . . . . . . . . . . . 1 . . . . . . . . Hotshot 6 | . . . . . . . . . . . . . . . . . . . . . . . . 6 Alpha 7 3 | . . . . . . . . . . . . . . . . . . . . . . . 1 2 Fortress 1 | . . . . . . . . . . . . . . . . . . . . . . . 1 . Ranger 1 | . . . . . . . . 1 . . . . . . . . . . . . . . . . Botcube 1 | . . . . . . . 1 . . . . . . . . . . . . . . . . . Decomposer 1 | . . . . . . . . . . . 1 . . . . . . . . . . . . . Assembled 2 | . . . . . . . . . . . . . . . . . 2 . . . . . . . Thug 1 | . . . . . . . . . . . . . 1 . . . . . . . . . . . Savage 1 | . . . . . . . . . . . . . 1 . . . . . . . . . . . Butcher 1 | . . . . . . . . . . . . . 1 . . . . . . . . . . . Guerrilla 1 | . . . . . . . . . . . . . 1 . . . . . . . . . . . Best Kill Streak 11 | . 6 3 5 7 2 . 6 7 . . 3 1 5 1 . 7 11 2 3 . 9 1 4 5 Combat Bots Only 9 | . 5 3 5 5 1 . 6 7 . . 3 1 5 1 . 5 7 2 3 . 9 . 3 4 Max Kills in Single Turn 4 | . 2 2 3 2 1 1 2 3 . . 2 1 3 1 . 2 4 1 2 . 3 1 2 2 Gunslinging 1 | . . 1 1 . . . 1 1 . . 1 . . . . 1 1 . 1 . . . . 1 Exploded 4 | . 1 . 3 . . . . . . . . . 2 . . . 4 . . . 3 . . 1 Melee 1 | . . . . . . . . . . . . . . . . . 1 . . . . . 1 . Uniques/NPCs Destroyed . | . . . . . . . . . . . . . . . . . . . . . . . . . Combat | -11 -10 -10 -9 -9 -9 -9 -6 -6 -6 -6 -5 -5 -5 -5 -5 -5 -4 -4 -4 -4 -3 -3 -3 -3 -------- Run | Yrd Mat Min Mat Sto Rec Scr Fac Low Low Dat Pro Fac Ext Cet Arc Hub Fac Upp Upp Zhi Pro Res Qua Frg Hostile Shots Fired 2131 | . 51 13 50 54 17 . 275 82 . . 9 . 115 31 . 81 355 78 7 . 84 . 442 387 Missed 600 | . 12 1 27 19 4 . 72 20 . . . . 34 9 . 23 119 27 2 . 24 . 140 67 Deflected 19 | . . . . . . . . . . . . . . . . . . . . . . . . 19 Hits 1531 | . 39 12 23 35 13 . 203 62 . . 9 . 81 22 . 58 236 51 5 . 60 . 302 320 Melee 22 | . . . 2 . . . 1 4 . . . . 2 . . . 4 . . . 5 . 4 . Projectile 1509 | . 39 12 21 35 13 . 202 58 . . 9 . 79 22 . 58 232 51 5 . 55 . 298 320 AOE 4 | . . . . . . . . . . . . . 3 . . 1 . . . . . . . . Critical Strikes 86 | . . . . . 2 . 6 2 . . . . 6 2 . 2 8 1 . . 3 . 26 28 Actively Blocked 35 | . . . . . . . . . . . . . . . . . . . . . . . 12 23 Part Disruptions 3 | . . . . . . . . . . . . . . . . 1 . . . . . . . 2 Actively Blocked 1 | . . . . . . . . . . . . . . . . . . . . . . . . 1 Damage Taken 26420 | . 477 131 325 401 208 . 2627 1142 . . 175 . 1873 507 . 1325 4443 918 102 . 1550 40 3932 6244 Core 2540 | . 102 33 37 65 . . 255 115 . . . . 156 12 . 115 222 50 . . 105 . 157 1116 Absorbed by Shields 2994 | . . . . . 45 . 139 . . . . . 67 99 . . 168 . . . . 14 1352 1110 Ignored by Resistances 2425 | . . . . . . . 71 26 . . . . . . . . . . . . . . 1114 1214 Regen/Repaired (Parts) 2887 | . . . . . . . 47 . . . . . 91 250 . . 1006 . . . . . 724 769 Core Remaining (%) 69 | 100 . 46 . . . 74 . . . . 56 . . . . 71 . . . . 67 . . . Volleys Fired 915 | . 41 9 34 40 10 1 105 29 . . 5 4 96 19 16 35 107 17 3 7 29 8 163 137 Largest 4 | . 2 2 2 2 2 1 4 4 . . 4 4 4 4 3 4 4 4 4 4 4 4 4 4 Hottest 400 | . 100 115 130 130 130 . 287 287 . . 168 168 343 318 237 400 400 345 332 338 338 325 364 376 Shots Fired 2781 | . 81 19 68 80 20 1 354 104 1 . 21 10 364 49 18 136 345 63 12 28 68 21 510 408 Gun 2739 | . 81 19 68 80 20 . 354 104 1 . 21 9 362 49 12 136 333 63 12 28 55 21 509 402 Cannon 9 | . . . . . . . . . . . . 1 . . 6 . 2 . . . . . . . Launcher 22 | . . . . . . . . . . . . . 2 . . . 7 . . . 10 . . 3 Special 11 | . . . . . . 1 . . . . . . . . . . 3 . . . 3 . 1 3 Kinetic 398 | . . . . . . . 178 34 . . 16 6 136 . . 12 . . . . . . . 16 Thermal 2285 | . 16 19 68 80 20 . 176 70 1 . 5 4 226 49 18 124 335 63 12 28 55 21 509 386 Explosive 22 | . . . . . . . . . . . . . 2 . . . 7 . . . 10 . . 3 Electromagnetic 65 | . 65 . . . . . . . . . . . . . . . . . . . . . . . Robot Hit Streak 35 | . 8 9 12 24 9 3 11 22 . . 4 7 18 11 . 16 24 4 8 14 22 10 11 35 Robot Miss Streak 13 | . 4 1 10 13 4 . 12 2 . . 3 1 6 2 . 3 6 4 1 1 4 5 7 5 Penetration Max 2 | . . . . . . . 1 1 . . . . 2 . . . . . . . . . . 1 Secondary Targets 67 | . 1 1 3 2 1 . 15 7 . . 1 . 8 . . 4 10 2 1 . 1 . 5 5 Max Gunslinging Chain 2 | . 1 1 1 1 1 . 1 2 . . 1 . 1 . . 1 1 1 1 . 1 . 1 2 Shots Hit Robots 1875 | . 46 14 58 72 22 3 228 80 . . 12 5 248 37 . 102 263 32 10 15 48 10 285 285 Core Hits 1114 | . 22 7 70 87 32 1 156 43 . . 8 3 138 13 . 67 198 8 7 8 39 5 105 97 Critical Kills 22 | . . . . . . . 3 3 . . 2 2 8 . . . 2 . . . . . . 2 Critical Parts Destroyed 24 | . . . . . . . . . . . 1 . 20 . . 1 1 . . . . . . 1 Critical Strikes 102 | . 2 2 . . . . 4 5 . . 4 2 41 4 . 4 5 1 . 1 1 . 1 25 Burn 52 | . 2 2 . . . . 1 1 . . . . 11 4 . 3 2 1 . 1 1 . 1 22 Destroy 50 | . . . . . . . 3 4 . . 4 2 30 . . 1 3 . . . . . . 3 Melee Attacks 13 | . . . . . 3 2 6 . . . . . 1 . . . . . . . . . 1 . Kinetic 1 | . . . . . . . . . . . . . . . . . . . . . . . 1 . Impact . | . . . . . . . . . . . . . . . . . . . . . . . . . Slashing 5 | . . . . . 3 2 . . . . . . . . . . . . . . . . . . Piercing . | . . . . . . . . . . . . . . . . . . . . . . . . . Sneak Attacks 12 | . . . . . 3 2 6 . . . . . 1 . . . . . . . . . . . Combat Hostiles . | . . . . . . . . . . . . . . . . . . . . . . . . . Follow-up Attacks . | . . . . . . . . . . . . . . . . . . . . . . . . . Damage Inflicted 55668 | . 870 198 1090 960 568 128 5048 1588 . . 136 73 6335 974 . 3306 10126 970 310 474 3034 313 11486 7681 Guns 50005 | . 652 177 744 960 374 . 4905 1588 . . 126 58 5755 974 . 3252 8394 970 310 474 1145 313 11469 7365 Cannons . | . . . . . . . . . . . . . . . . . . . . . . . . . Explosions 5012 | . 218 . 344 . . . 81 . . . . . 489 . . . 1699 . . . 1889 . . 292 Melee 312 | . . . . . 184 128 . . . . . . . . . . . . . . . . . . Ramming 339 | . . 21 2 . 10 . 62 . . . 10 15 91 . . 54 33 . . . . . 17 24 Kinetic 4750 | . . . . . . . 2434 388 . . 68 18 1316 . . 102 . . . . . . . 424 Thermal 45581 | . 343 177 1088 960 374 . 2552 1200 . . 58 40 4439 974 . 3150 8604 970 310 474 1145 313 11469 6941 Explosive 4159 | . . . . . . . . . . . . . 489 . . . 1489 . . . 1889 . . 292 Electromagnetic 527 | . 527 . . . . . . . . . . . . . . . . . . . . . . . Impact . | . . . . . . . . . . . . . . . . . . . . . . . . . Slashing 312 | . . . . . 184 128 . . . . . . . . . . . . . . . . . . Piercing . | . . . . . . . . . . . . . . . . . . . . . . . . . Highest Corruption 32 | . 5 5 . . . . 6 8 8 8 8 . . . . 17 5 5 1 1 1 . 10 32 Average Corruption 5 | . 4 5 . . . . 4 5 8 8 8 . . . . 2 3 4 1 1 1 . 5 15 Corruption Purged 8 | . . . . . . . . 3 . . . . . . . . . 5 . . . . . . Corruption Blocked . | . . . . . . . . . . . . . . . . . . . . . . . . . Effects 378 | . 1 23 . . . . 34 57 17 5 24 . . . . 9 51 7 1 2 4 . 57 86 Message Errors 84 | . 1 4 . . . . 7 15 5 2 6 . . . . 1 11 2 . . . . 11 19 Matter Fused 78 | . . 10 . . . . 8 10 2 . 7 . . . . 1 6 1 . . 1 . 17 15 Heat Flow Errors 41 | . . 1 . . . . 5 4 . 1 3 . . . . 1 6 . . . 1 . 8 11 Energy Discharges 43 | . . 4 . . . . 4 12 4 . 1 . . . . 1 5 . . . . . 6 6 Parts Rejected 5 | . . . . . . . . . . . . . . . . . 1 . . . . . 1 3 Parts Fused 2 | . . . . . . . . . . . . . . . . 1 . . . . . . 1 . Data Loss (minor) 52 | . . 3 . . . . 6 4 2 1 6 . . . . 1 8 3 1 2 1 . 6 8 Data Loss (major) 20 | . . . . . . . 2 8 1 1 . . . . . . 2 . . . . . 2 4 Misfires 21 | . . 1 . . . . 2 3 1 . 1 . . . . 1 7 1 . . 1 . . 3 Alerts 7 | . . . . . . . . 1 2 . . . . . . . 2 . . . . . 1 1 Misdirections 3 | . . . . . . . . . . . . . . . . . . . . . . . . 3 Weapon Failures 22 | . . . . . . . . . . . . . . . . 2 3 . . . . . 4 13 Overload Shots 8 | . . . . . . . . . . . . . . 1 . . . 1 . . . . . 6 Overflow Damage 224 | . . . 40 . 22 16 9 . . . 1 . 51 . . . 31 . . . 42 . . 12 Projectiles . | . . . . . . . . . . . . . . . . . . . . . . . . . Explosions 175 | . . . 40 . . . 9 . . . . . 41 . . . 31 . . . 42 . . 12 Melee 49 | . . . . . 22 16 . . . . 1 . 10 . . . . . . . . . . . Knockbacks 5 | . . . . . . . . . . . . . 2 . . 3 . . . . . . . . Impact 4 | . . . . . . . . . . . . . 2 . . 2 . . . . . . . . Kinetic . | . . . . . . . . . . . . . . . . . . . . . . . . . Secondary 1 | . . . . . . . . . . . . . . . . 1 . . . . . . . . Self-Inflicted Damage 478 | . 50 . 52 . . . 49 . . . . . . . . . 168 . . . 159 . . . Shots 12 | . 1 . 1 . . . 1 . . . . . . . . . 5 . . . 4 . . . Rammed . | . . . . . . . . . . . . . . . . . . . . . . . . . Targets Rammed 36 | . . 3 1 . 2 . 6 . . . 2 3 6 . . 6 4 . . . . . 1 2 Kicked 36 | . . 3 1 . 2 . 6 . . . 2 3 6 . . 6 4 . . . . . 1 2 Crushed . | . . . . . . . . . . . . . . . . . . . . . . . . . Highest Temperature 458 | . 222 220 120 99 131 . 396 241 . 130 255 117 458 347 68 222 414 340 . . 240 232 252 380 Average Temperature 100 | . 60 88 45 32 56 . 93 105 . 81 77 53 128 166 51 89 120 160 . . 85 81 63 140 Received Heat Transfer 4148 | . 189 51 45 147 53 . 612 390 . . 45 . 543 9 . 102 455 . . . 255 . 562 690 Effects 16 | . . . . . . . 2 2 . . . . 3 4 . . 5 . . . . . . . Shutdowns 2 | . . . . . . . . . . . . . . 1 . . 1 . . . . . . . Energy Bleed 2 | . . . . . . . . . . . . . . . . . 2 . . . . . . . Interference 11 | . . . . . . . 2 2 . . . . 2 3 . . 2 . . . . . . . Matter Decay 1 | . . . . . . . . . . . . . 1 . . . . . . . . . . . Siege Activations . | . . . . . . . . . . . . . . . . . . . . . . . . . Martial Activations . | . . . . . . . . . . . . . . . . . . . . . . . . . Shielding Activations 6 | . . . . . . . . . . . . . . . . . . . . . . . . 6 Total Turns 122 | . . . . . . . . . . . . . . . . . . . . . . . . 122 Longest Duration 58 | . . . . . . . . . . . . . . . . . . . . . . . . 58 Robots Disrupted . | . . . . . . . . . . . . . . . . . . . . . . . . . Combat Hostiles . | . . . . . . . . . . . . . . . . . . . . . . . . . Robots Corrupted 2 | . . . . . . . . . . . 1 . 1 . . . . . . . . . . . Combat Hostiles . | . . . . . . . . . . . . . . . . . . . . . . . . . Parts Fried 6 | . 2 . . . . . . . . . . . 4 . . . . . . . . . . . Impact Corruptions 2 | . . . . . . . . . . . 1 . 1 . . . . . . . . . . . Robots Melted 15 | . . 1 . . . . 2 . . . . . 3 . . . 5 2 . . 1 . 1 . Combat Hostiles 15 | . . 1 . . . . 2 . . . . . 3 . . . 5 2 . . 1 . 1 . Parts Melted 150 | . 1 . 1 1 . . 7 4 . . . . 30 4 . 13 31 9 1 . 2 1 41 4 Heat Transferred 67390 | . 718 666 1135 1246 470 . 5079 2593 . . 111 74 7954 1917 . 5498 12920 1332 370 684 1628 370 10880 11745 Parts Sabotaged 4 | . . . . . . . . . . . . . . . . . 2 . . . . . 2 . Parts Stolen . | . . . . . . . . . . . . . . . . . . . . . . . . . Parts Stripped 18 | . . . . . . . . . . . . . . . . . . . . . . . 18 . Power Chain Reactions 4 | . 4 . . . . . . . . . . . . . . . . . . . . . . . Alert | -11 -10 -10 -9 -9 -9 -9 -6 -6 -6 -6 -5 -5 -5 -5 -5 -5 -4 -4 -4 -4 -3 -3 -3 -3 ------- Run | Yrd Mat Min Mat Sto Rec Scr Fac Low Low Dat Pro Fac Ext Cet Arc Hub Fac Upp Upp Zhi Pro Res Qua Frg Maximum Alert Level 4 | . . . 1 1 . . 3 . . . . . 3 2 1 3 4 . . . . . 3 2 Low Security (%) 46 | . 100 100 88 70 100 . 28 . . . . 100 24 . 98 43 . . . . . 100 52 . Level 1 13 | . . . 11 29 . . 25 . . . . . 49 21 1 8 . . . . . . 9 11 Level 2 24 | . . . . . . . 26 . . . . . 24 78 . 1 28 . . . . . 31 88 Level 3 9 | . . . . . . . 18 . . . . . 1 . . 46 24 . . . . . 6 . Level 4 6 | . . . . . . . . . . . . . . . . . 47 . . . . . . . Level 5 . | . . . . . . . . . . . . . . . . . . . . . . . . . High Security . | . . . . . . . . . . . . . . . . . . . . . . . . . Max Security . | . . . . . . . . . . . . . . . . . . . . . . . . . Peak Influence 1526 | . 153 73 330 307 157 . 763 . . . . 20 812 511 200 1097 1526 . . . . 50 839 562 Initial 525 | . . 23 . 128 13 . . . . . . . . 454 185 54 525 . . . . 45 . 468 Average 362 | . 76 12 116 133 67 . 398 . . . . 1 285 439 178 499 1019 . . . . 4 270 475 Influence Increases 12619 | . 369 142 624 404 597 . 1585 321 . . 61 39 1934 289 21 1559 1838 100 70 15 385 52 1500 714 Destroy 0b10 Robot/C 7460 | . 200 120 380 280 200 . 1040 280 . . 60 20 1180 160 . 640 1200 80 60 . 320 . 880 360 Destroy 0b10 Robot/NC 480 | . 30 . 20 40 30 . 45 . . . . 5 30 10 . 55 65 . . 15 5 15 35 80 Destroy Leader 1286 | . 48 20 74 84 . . 256 10 . . . 12 124 . . 148 244 20 10 . 20 2 124 90 Allied During Kill 1366 | . . 2 28 . 181 . 120 1 . . 1 . 316 102 . 575 . . . . 40 . . . Successful Hack 204 | . 5 . 14 . 19 . 18 . . . . . 72 . . . 24 . . . . 12 12 28 Select Force Hacks 230 | . 30 . 30 . 150 . 20 . . . . . . . . . . . . . . . . . Disable Machine 540 | . . . 45 . . . 15 . . . . . 15 15 15 45 75 . . . . 15 180 120 Destroy Structure 738 | . 11 . 33 . 17 . 41 . . . . 2 92 2 6 66 230 . . . . 8 194 36 Partial Spotted 15 | . . . . . . . . . . . . . . . . . . . . . . . 15 . Lose Combat Pursuer 300 | . 45 . . . . . 30 30 . . . . 105 . . 30 . . . . . . 60 . Influence Decreases 12253 | . 309 202 318 676 556 75 870 937 99 . 61 39 1122 638 328 642 1387 971 215 523 318 119 667 1181 Entered New Map 3466 | . . 37 . 178 21 75 . 265 19 . . . . 358 278 102 548 565 125 508 . 22 . 365 Time Decay 6897 | . 279 165 228 398 476 . 630 592 80 . 50 39 572 270 50 420 699 386 90 15 288 97 487 586 Lost Part 776 | . 30 . 30 10 . . 130 60 . . . . 20 10 . 40 130 20 . . 30 . 46 220 Lost Ally 782 | . . . 60 90 7 . 110 20 . . 11 . 380 . . 80 10 . . . . . 4 10 Purge Threat 332 | . . . . . 52 . . . . . . . 150 . . . . . . . . . 130 . Squads Dispatched 82 | . 4 . 1 2 . . 18 . . . . . 7 . . 12 20 . . . 1 4 12 1 Investigation 20 | . 2 . 1 1 . . 3 . . . . . 2 . . 3 6 . . . . 2 . . Extermination 22 | . . . . . . . 4 . . . . . . . . 3 7 . . . . . 7 1 Reinforcement 23 | . 2 . . 1 . . 6 . . . . . 3 . . 5 2 . . . . 2 2 . Assault 12 | . . . . . . . . . . . . . 2 . . 1 5 . . . 1 . 3 . Garrison 5 | . . . . . . . 5 . . . . . . . . . . . . . . . . . Intercept . | . . . . . . . . . . . . . . . . . . . . . . . . . Searches Triggered . | . . . . . . . . . . . . . . . . . . . . . . . . . Data Miner Redirects 10 | . . . . . . . . . . . . . . . . 3 5 . . . . . 2 . Construction Impeded 4 | . . . . . . . 1 . . . . . 2 . . 1 . . . . . . . . Haulers Reinforced 8 | . . . . . . . 2 . . . . . . . . 2 2 . . . . 2 . . Active Scanning Responses . | . . . . . . . . . . . . . . . . . . . . . . . . . Cargo Convoy Interrupts . | . . . . . . . . . . . . . . . . . . . . . . . . . Stealth | -11 -10 -10 -9 -9 -9 -9 -6 -6 -6 -6 -5 -5 -5 -5 -5 -5 -4 -4 -4 -4 -3 -3 -3 -3 --------- Run | Yrd Mat Min Mat Sto Rec Scr Fac Low Low Dat Pro Fac Ext Cet Arc Hub Fac Upp Upp Zhi Pro Res Qua Frg Distress Signals 24 | . 1 . 2 4 . . 2 . . . . . 3 2 . 2 3 . . . . 3 1 1 Communications Jammed 62 | . . . . . . . . . . . . . . . . . 16 . . . . . 8 38 Distress Signals 58 | . . . . . . . . . . . . . . . . . 15 . . . . . 5 38 Times Spotted 472 | . 17 8 25 24 10 . 56 18 . . 3 1 68 10 . 34 75 4 3 . 17 3 60 36 Peak Tracking Total 9 | . 3 3 6 5 2 . 5 9 . . 3 1 6 5 . 7 6 2 2 . 9 2 6 4 Tactical Retreats 17 | . 2 . . . . . 2 2 . . . . 6 . . 1 1 . . . . . 3 . Traps | -11 -10 -10 -9 -9 -9 -9 -6 -6 -6 -6 -5 -5 -5 -5 -5 -5 -4 -4 -4 -4 -3 -3 -3 -3 ------- Run | Yrd Mat Min Mat Sto Rec Scr Fac Low Low Dat Pro Fac Ext Cet Arc Hub Fac Upp Upp Zhi Pro Res Qua Frg Traps Triggered 23 | . 4 . . 1 . . 2 . . . . 2 4 . . 1 3 . . . . 2 4 . Indirectly . | . . . . . . . . . . . . . . . . . . . . . . . . . Trap Hack Attempts . | . . . . . . . . . . . . . . . . . . . . . . . . . Triggered . | . . . . . . . . . . . . . . . . . . . . . . . . . Disarmed . | . . . . . . . . . . . . . . . . . . . . . . . . . Reprogrammed . | . . . . . . . . . . . . . . . . . . . . . . . . . Reused . | . . . . . . . . . . . . . . . . . . . . . . . . . Traps Extracted . | . . . . . . . . . . . . . . . . . . . . . . . . . Installed . | . . . . . . . . . . . . . . . . . . . . . . . . . Triggered . | . . . . . . . . . . . . . . . . . . . . . . . . . Machines | -11 -10 -10 -9 -9 -9 -9 -6 -6 -6 -6 -5 -5 -5 -5 -5 -5 -4 -4 -4 -4 -3 -3 -3 -3 ---------- Run | Yrd Mat Min Mat Sto Rec Scr Fac Low Low Dat Pro Fac Ext Cet Arc Hub Fac Upp Upp Zhi Pro Res Qua Frg Machines Disabled 40 | . . . 3 . . . 1 . . . . . 2 1 1 3 5 1 . . 1 1 13 8 Max in Single Turn 5 | . . . 3 . . . 1 . . . . . . 1 1 . 1 1 . . 1 1 2 5 Garrison Access 2 | . . . . . . . 2 . . . . . . . . . . . . . . . . . Machines Repaired . | . . . . . . . . . . . . . . . . . . . . . . . . . Machines Dismantled . | . . . . . . . . . . . . . . . . . . . . . . . . . Machines Sabotaged . | . . . . . . . . . . . . . . . . . . . . . . . . . Overloaded Fab Kills . | . . . . . . . . . . . . . . . . . . . . . . . . . Hacking | -11 -10 -10 -9 -9 -9 -9 -6 -6 -6 -6 -5 -5 -5 -5 -5 -5 -4 -4 -4 -4 -3 -3 -3 -3 --------- Run | Yrd Mat Min Mat Sto Rec Scr Fac Low Low Dat Pro Fac Ext Cet Arc Hub Fac Upp Upp Zhi Pro Res Qua Frg Machines Accessed 99 | . 3 1 4 1 10 4 10 1 . 3 . 1 8 1 . 6 12 1 . 4 . 5 14 10 Terminals 49 | . 2 . 3 1 5 . 3 . . . . 1 8 1 . 5 3 . . . . 2 11 4 Fabricators 7 | . . . . . . . 2 . . . . . . . . . . . . . . 1 . 4 Repair Stations 8 | . . . . . . . 2 . . . . . . . . . 3 . . . . . 1 2 Recycling Units 13 | . 1 . 1 . 5 . . . . . . . . . . . 4 . . . . 2 . . Scanalyzers 4 | . . . . . . . 1 . . . . . . . . . 2 . . . . . 1 . Garrison Access 4 | . . . . . . . 2 . . . . . . . . 1 . . . . . . 1 . Total Hacks 233 | . 10 1 8 2 24 14 18 1 . 26 . 3 18 4 . 12 29 1 . 17 . 7 23 15 Successful 118 | . 4 1 3 . 15 14 5 1 . 26 . . 7 . . 2 9 1 . 17 . 4 6 3 Failed 115 | . 6 . 5 2 9 . 13 . . . . 3 11 4 . 10 20 . . . . 3 17 12 Catastrophic 26 | . . . 1 1 . . 1 . . . . 2 1 1 . 1 5 . . . . 2 6 5 Database Lockouts . | . . . . . . . . . . . . . . . . . . . . . . . . . Manual 88 | . 10 . 6 . 21 . 5 . . . . 3 6 1 . 9 13 . . . . 4 9 1 Terminals 114 | . 9 . 7 2 18 . 5 . . . . 3 18 4 . 11 8 . . . . 4 18 7 Fabricators 8 | . . . . . . . 3 . . . . . . . . . . . . . . 1 . 4 Repair Stations 18 | . . . . . . . 5 . . . . . . . . . 8 . . . . . 1 4 Recycling Units 18 | . 1 . 1 . 6 . . . . . . . . . . . 8 . . . . 2 . . Scanalyzers 9 | . . . . . . . 3 . . . . . . . . . 5 . . . . . 1 . Garrison Access 6 | . . . . . . . 2 . . . . . . . . 1 . . . . . . 3 . Terminal Hacks 75 | . . 1 2 . 2 14 . 1 . 26 . . 5 . . . 1 1 . 17 . . 3 2 Record 17 | . . . . . . 5 . . . 6 . . . . . . . 1 . 5 . . . . Part Schematic 18 | . . . . . . . . . . 13 . . 1 . . . . . . 4 . . . . Robot Schematic 4 | . . . . . . . . . . 4 . . . . . . . . . . . . . . Robot Analysis 14 | . . . . . . 8 . . . . . . 2 . . . . . . 4 . . . . Prototype ID Bank 7 | . . . . . . . . . . 3 . . . . . . . . . 4 . . . . Open Door 3 | . . 1 . . . . . 1 . . . . . . . . . . . . . . 1 . Branch Access Points 2 | . . . 1 . . . . . . . . . . . . . 1 . . . . . . . Emergency Access Points 1 | . . . . . . . . . . . . . . . . . . . . . . . . 1 Unreport Threat 5 | . . . . . 2 . . . . . . . 1 . . . . . . . . . 2 . Hauler Manifests 1 | . . . 1 . . . . . . . . . . . . . . . . . . . . . Zone Layout 2 | . . . . . . . . . . . . . 1 . . . . . . . . . . 1 Proto ID Catalog 1 | . . . . . . 1 . . . . . . . . . . . . . . . . . . Fabricator Hacks 1 | . . . . . . . . . . . . . . . . . . . . . . 1 . . Load Schematic 1 | . . . . . . . . . . . . . . . . . . . . . . 1 . . Repair Station Hacks 4 | . . . . . . . 1 . . . . . . . . . 2 . . . . . . 1 Scan Component 4 | . . . . . . . 1 . . . . . . . . . 2 . . . . . . 1 Recycling Unit Hacks 1 | . . . . . . . . . . . . . . . . . 1 . . . . . . . Retrieve Components 1 | . . . . . . . . . . . . . . . . . 1 . . . . . . . Scanalyzer 2 | . . . . . . . . . . . . . . . . . 1 . . . . . 1 . Insert Component 2 | . . . . . . . . . . . . . . . . . 1 . . . . . 1 . Garrison Access Hacks 2 | . . . . . . . 2 . . . . . . . . . . . . . . . . . Seal Access 2 | . . . . . . . 2 . . . . . . . . . . . . . . . . . Unauthorized Hacks 33 | . 4 . 1 . 13 . 2 . . . . . 2 . . 2 4 . . . . 3 2 . Terminals 18 | . 3 . . . 8 . 1 . . . . . 2 . . 2 . . . . . 1 1 . Track 1 | . . . . . . . . . . . . . 1 . . . . . . . . . . . Assimilate 1 | . . . . . . . 1 . . . . . . . . . . . . . . . . . Botnet 7 | . 1 . . . 3 . . . . . . . 1 . . . . . . . . 1 1 . Skim 7 | . 2 . . . 5 . . . . . . . . . . . . . . . . . . . Sabotage 2 | . . . . . . . . . . . . . . . . 2 . . . . . . . . Fabricators 1 | . . . . . . . 1 . . . . . . . . . . . . . . . . . Download 1 | . . . . . . . 1 . . . . . . . . . . . . . . . . . Repair Stations 1 | . . . . . . . . . . . . . . . . . . . . . . . 1 . Mechanics 1 | . . . . . . . . . . . . . . . . . . . . . . . 1 . Recycling Units 13 | . 1 . 1 . 5 . . . . . . . . . . . 4 . . . . 2 . . Tunnel 7 | . 1 . 1 . 5 . . . . . . . . . . . . . . . . . . . Fedlink 6 | . . . . . . . . . . . . . . . . . 4 . . . . 2 . . Scanalyzers . | . . . . . . . . . . . . . . . . . . . . . . . . . Garrison Access . | . . . . . . . . . . . . . . . . . . . . . . . . . Data Cores Recovered 3 | . . . . . . . . . . . . . . . . 2 . . . . . 1 . . Used 1 | . . . . . . . . . . . . . . . . 1 . . . . . . . . Hacking Detections 63 | . 2 . 3 1 2 . 7 . . . . 1 8 1 . 4 9 . . . . 2 13 10 Full Trace Events 5 | . . . . . . . 1 . . . . . 1 . . 1 2 . . . . . . . Feedback Events . | . . . . . . . . . . . . . . . . . . . . . . . . . Feedback Blocked . | . . . . . . . . . . . . . . . . . . . . . . . . . Robot Schematics Acquired 5 | . . . . . . . 1 . . 4 . . . . . . . . . . . . . . Robots Built . | . . . . . . . . . . . . . . . . . . . . . . . . . Authchips . | . . . . . . . . . . . . . . . . . . . . . . . . . Time . | . . . . . . . . . . . . . . . . . . . . . . . . . Total Robot Build Rating . | . . . . . . . . . . . . . . . . . . . . . . . . . Part Schematics Acquired 18 | . . . . . . . . . . 13 . . 1 . . . . . . 4 . . . . Parts Built . | . . . . . . . . . . . . . . . . . . . . . . . . . Authchips . | . . . . . . . . . . . . . . . . . . . . . . . . . Time . | . . . . . . . . . . . . . . . . . . . . . . . . . Total Part Build Rating . | . . . . . . . . . . . . . . . . . . . . . . . . . Parts Repaired . | . . . . . . . . . . . . . . . . . . . . . . . . . Time . | . . . . . . . . . . . . . . . . . . . . . . . . . Parts Recycled . | . . . . . . . . . . . . . . . . . . . . . . . . . Recycled Matter . | . . . . . . . . . . . . . . . . . . . . . . . . . Retrieved Matter . | . . . . . . . . . . . . . . . . . . . . . . . . . Retrieved Components 8 | . . . . . . . . . . . . . . . . . 8 . . . . . . . Parts Scanalyzed 1 | . . . . . . . . . . . . . . . . . 1 . . . . . . . Part Schematics Acquired . | . . . . . . . . . . . . . . . . . . . . . . . . . Parts Damaged . | . . . . . . . . . . . . . . . . . . . . . . . . . Bothacking | -11 -10 -10 -9 -9 -9 -9 -6 -6 -6 -6 -5 -5 -5 -5 -5 -5 -4 -4 -4 -4 -3 -3 -3 -3 ------------ Run | Yrd Mat Min Mat Sto Rec Scr Fac Low Low Dat Pro Fac Ext Cet Arc Hub Fac Upp Upp Zhi Pro Res Qua Frg Used RIF Installer . | . . . . . . . . . . . . . . . . . . . . . . . . . Robots Hacked 7 | . . . . . . . 2 . . . . . 1 . . . 1 . . . . . 1 2 Non-combat 1 | . . . . . . . 1 . . . . . . . . . . . . . . . . . Combat . | . . . . . . . . . . . . . . . . . . . . . . . . . Robot Hacks Applied 1 | . . . . . . . 1 . . . . . . . . . . . . . . . . . find_chute 1 | . . . . . . . 1 . . . . . . . . . . . . . . . . . Manual 6 | . . . . . . . 1 . . . . . 1 . . . 1 . . . . . 1 2 Relay Couplers Released . | . . . . . . . . . . . . . . . . . . . . . . . . . Fabnet Peak Effective % . | . . . . . . . . . . . . . . . . . . . . . . . . . Robots Rewired 36 | . . . . . 25 . 1 2 . . . . 6 . . . . . . . 2 . . . Allies Hacked 1 | . . . . . . . . . . . . . . . . . . . . . . . . 1 Hacks Repelled . | . . . . . . . . . . . . . . . . . . . . . . . . . Allies | -11 -10 -10 -9 -9 -9 -9 -6 -6 -6 -6 -5 -5 -5 -5 -5 -5 -4 -4 -4 -4 -3 -3 -3 -3 -------- Run | Yrd Mat Min Mat Sto Rec Scr Fac Low Low Dat Pro Fac Ext Cet Arc Hub Fac Upp Upp Zhi Pro Res Qua Frg Total Allies 76 | . . 3 . 9 25 1 2 2 . . . . 23 5 . . 1 . . . 2 . 1 2 Largest Group 32 | . . 3 3 9 32 23 8 2 1 1 1 . 10 8 8 7 1 . . . 2 . 1 1 Highest-Rated Group 682 | . . 73 73 80 404 328 176 52 20 20 20 . 308 682 682 523 36 . . . 90 . 36 35 Highest-Rated Ally 159 | . . 31 31 16 34 42 44 32 20 20 20 . 159 159 159 96 36 . . . 48 . 36 35 Total Orders 45 | . . . . 2 11 22 3 . . 2 . . . 2 . . . . . . 3 . . . STAY 16 | . . . . . 8 5 1 . . 1 . . . . . . . . . . 1 . . . ROAM 1 | . . . . . . . . . . . . . . . . . . . . . 1 . . . FOLLOW 13 | . . . . . 1 10 . . . 1 . . . . . . . . . . 1 . . . GUARD 1 | . . . . . . . . . . . . . . 1 . . . . . . . . . . AID 3 | . . . . . . . 2 . . . . . . 1 . . . . . . . . . . TUNNEL 1 | . . . . . 1 . . . . . . . . . . . . . . . . . . . DROP 2 | . . . . . . 2 . . . . . . . . . . . . . . . . . . PICKUP 2 | . . . . . . 2 . . . . . . . . . . . . . . . . . . COLLECT 2 | . . . . . 1 1 . . . . . . . . . . . . . . . . . . EXPLORE 4 | . . . . 2 . 2 . . . . . . . . . . . . . . . . . . Ally Attacks 390 | . . . 16 . 22 . 74 2 . . . . 128 39 . 104 . . . . 5 . . . Total Damage 10105 | . . . 151 . 662 . 1493 38 . . . . 2157 1415 . 4054 . . . . 135 . . . Kills 74 | . . . 2 . 9 . 12 . . . . . 18 8 . 23 . . . . 2 . . . Allies Corrupted 3 | . . . . . . . . . . . . . 1 . . 1 . . . . . . . 1 Allies Melted 1 | . . . . . . . . . . . . . . . . 1 . . . . . . . . Intel | -11 -10 -10 -9 -9 -9 -9 -6 -6 -6 -6 -5 -5 -5 -5 -5 -5 -4 -4 -4 -4 -3 -3 -3 -3 ------- Run | Yrd Mat Min Mat Sto Rec Scr Fac Low Low Dat Pro Fac Ext Cet Arc Hub Fac Upp Upp Zhi Pro Res Qua Frg Active Infowar (turns) 18106 | . . . . . . 2327 2696 1861 556 119 733 444 1072 . . . 2027 4 . . 388 908 3189 1782 Optics 5446 | . . . . . . . 2574 1861 556 119 336 . . . . . . . . . . . . . IFF 4349 | . . . . . . . 105 1320 556 119 733 444 1072 . . . . . . . . . . . Terrain 1159 | . . . . . . . . . . . . . . . . . . . . . . 479 680 . Traps 350 | . . . . . . . 350 . . . . . . . . . . . . . . . . . Seismic 3005 | . . . . . . 2327 678 . . . . . . . . . . . . . . . . . Decoding 15 | . . . . . . . . . . . 15 . . . . . . . . . . . . . Jamming 8205 | . . . . . . . . . . . . . . . . . 2027 4 . . 388 908 3096 1782 ECM 14 | . . . . . . . . . . . . . . . . . . . . . . . 14 . Robot Analysis Total 14 | . . . . . . 8 . . . . . . 2 . . . . . . 4 . . . . Derelict Logs Recovered 6 | . . 2 . . . . . 1 . . 3 . . . . . . . . . . . . . Drone Launches 21 | . . . . 19 . 2 . . . . . . . . . . . . . . . . . . Drone Recoveries 7 | . . . . 7 . . . . . . . . . . . . . . . . . . . . Exploration | -11 -10 -10 -9 -9 -9 -9 -6 -6 -6 -6 -5 -5 -5 -5 -5 -5 -4 -4 -4 -4 -3 -3 -3 -3 ------------- Run | Yrd Mat Min Mat Sto Rec Scr Fac Low Low Dat Pro Fac Ext Cet Arc Hub Fac Upp Upp Zhi Pro Res Qua Frg Turns Passed 31498 | . 684 689 602 954 2284 4645 2696 1861 556 119 768 449 2210 589 106 1120 2975 919 182 368 701 908 3286 1827 Spaces Moved 16574 | 1 293 338 283 433 926 3014 1144 868 299 93 382 197 916 210 36 622 1846 631 144 258 262 673 2026 679 Core 106 | . . . . . . 1 . . . . . . . . . . . . . . . . . 105 Treads . | . . . . . . . . . . . . . . . . . . . . . . . . . Legs 15086 | 1 293 338 283 433 926 1795 1033 868 299 93 382 197 916 210 36 622 1846 631 144 258 262 673 2026 521 Wheels 568 | . . . . . . 404 111 . . . . . . . . . . . . . . . . 53 Hover . | . . . . . . . . . . . . . . . . . . . . . . . . . Flight 814 | . . . . . . 814 . . . . . . . . . . . . . . . . . . Fastest Speed 34 | 120 120 190 120 120 190 34 120 185 186 116 186 190 117 117 187 117 120 120 120 120 120 120 117 50 Average Speed 151 | 120 171 190 152 153 190 143 184 186 186 121 188 190 187 183 187 141 125 120 120 120 120 120 119 171 Slowest Speed 900 | 120 190 190 190 190 190 400 260 250 186 186 190 190 190 187 187 187 190 120 120 120 180 180 187 900 Overloaded Moves . | . . . . . . . . . . . . . . . . . . . . . . . . . Propulsion Burnouts . | . . . . . . . . . . . . . . . . . . . . . . . . . Robots Hopped . | . . . . . . . . . . . . . . . . . . . . . . . . . Potential Cave-ins . | . . . . . . . . . . . . . . . . . . . . . . . . . Cave-ins Triggered . | . . . . . . . . . . . . . . . . . . . . . . . . . Teleports 1 | . . . . . . . . . . . . . . . . . . . . . . . . 1 Exploration Rate (%) 53 | 2 56 61 30 56 99 91 24 88 57 75 54 4 88 74 53 40 36 69 34 60 46 20 97 31 Regions Visited 24 Branch Regions 18 Pre-discovered Areas 17 | . 1 2 1 . 7 1 . . . 1 . . . . . . 1 . . 3 . . . . Known Exits Taken 7 | . . . 1 . 1 . 1 . . . . 1 . . . 1 1 . . . . 1 . . Unknown Exits Taken 17 | 1 1 1 . 1 . 1 . 1 1 1 1 . 1 1 1 . . 1 1 1 1 . 1 . Scrap Searched 23 | . . 1 . . . 5 . 1 2 . 5 . . . . . . 4 1 . 4 . . . Spaces Dug 106 | . . . . . . . . . . . . 1 21 . 3 . 17 . . . 31 3 22 8 Terrain Destroyed 509 | . 10 . 35 . . . 40 . . . 1 1 42 . 5 3 136 . . . 113 4 103 16 Melee . | . . . . . . . . . . . . . . . . . . . . . . . . . Projectile 143 | . . . . . . . . . . . . 1 4 . 5 3 3 . . . 6 4 103 14 AOE 362 | . 10 . 35 . . . 40 . . . . . 35 . . . 133 . . . 107 . . 2 Terrain Rammed . | . . . . . . . . . . . . . . . . . . . . . . . . . Walls Destroyed . | . . . . . . . . . . . . . . . . . . . . . . . . . Machines Disabled . | . . . . . . . . . . . . . . . . . . . . . . . . . Actions | -11 -10 -10 -9 -9 -9 -9 -6 -6 -6 -6 -5 -5 -5 -5 -5 -5 -4 -4 -4 -4 -3 -3 -3 -3 --------- Run | Yrd Mat Min Mat Sto Rec Scr Fac Low Low Dat Pro Fac Ext Cet Arc Hub Fac Upp Upp Zhi Pro Res Qua Frg Total 21027 | . 395 367 395 645 1424 3329 1491 1042 299 100 420 267 1211 392 57 767 2233 756 146 302 600 762 2564 1063 Wait 1757 | . 35 2 25 105 209 202 52 85 . 1 8 17 45 139 4 39 88 88 . . 283 13 166 151 Move 16550 | . 292 337 282 432 925 3013 1143 867 298 92 381 196 915 209 35 621 1845 630 143 257 261 672 2025 679 Hop . | . . . . . . . . . . . . . . . . . . . . . . . . . Pick Up 242 | . 14 5 15 9 1 34 23 9 . . 1 6 16 9 . 12 32 2 . 3 3 12 24 12 Fast Attach 276 | . 2 1 2 17 . 19 41 6 . 3 9 6 10 3 . 14 36 4 . 15 2 19 51 16 Attach 98 | . 2 1 6 1 . 6 16 10 . . 1 3 3 . . 5 14 2 . 2 6 1 9 10 Detach 40 | . . 1 2 . . 6 6 3 . 1 2 2 1 1 . 2 5 . . . 2 . 3 3 Swap 262 | . 3 2 9 9 5 5 31 5 1 . 1 7 30 2 2 11 49 6 . 1 10 9 39 25 Drop 483 | . 6 6 19 25 2 41 62 8 . 3 10 13 39 10 . 22 53 7 . 17 2 28 82 28 Fire 915 | . 41 9 34 40 10 1 105 29 . . 5 4 96 19 16 35 107 17 3 7 29 8 163 137 Melee 13 | . . . . . 3 2 6 . . . . . 1 . . . . . . . . . 1 . Ram . | . . . . . . . . . . . . . . . . . . . . . . . . . Kick 36 | . . 3 1 . 2 . 6 . . . 2 3 6 . . 6 4 . . . . . 1 2 Crush . | . . . . . . . . . . . . . . . . . . . . . . . . . Escape Stasis 25 | . . . . . . . . . . . . 10 15 . . . . . . . . . . . Rewire 322 | . . . . . 267 . . 19 . . . . 34 . . . . . . . 2 . . . Trap . | . . . . . . . . . . . . . . . . . . . . . . . . . Miscellaneous 8 | . . . . 7 . . . 1 . . . . . . . . . . . . . . . . Route ------- -11/Scrapyard -10/Materials (discovered 2 exits: *Mat / *Min) -10/Mines (discovered 3 exits: *Mat x2 / [*Sub]) -9/Materials (discovered 2 exits: *Min / *Sto) -9/Storage -9/Recycling (discovered 2 exits: [*Fac] / *Scr) -9/Scraptown (discovered 2 exits: *Fac x2) -6/Factory (discovered 3 exits: *Fac x2 / *Low) -6/Lower Caves -6/Lower Caves (discovered 2 exits: *Fac / *Dat) -6/Data Miner -5/Proximity Caves -5/Factory (discovered 3 exits: Fac / Upp / *Ext) -5/Extension (discovered 2 exits: *Fac / *Cet) -5/Cetus (discovered 2 exits: *Fac / [*Arc]) -5/Archives -5/Hub_04(d) (discovered 2 exits: *Fac x2) -4/Factory (discovered 4 exits: *Res x2 / *Upp x2) -4/Upper Caves -4/Upper Caves -4/Zhirov -3/Proximity Caves -3/Research (discovered 2 exits: [*Res] / *Qua) -3/Quarantine (discovered 3 exits: [*Res] / [*Sec] / *Frg) -3/Protoforge History --------- Turn | Location | Event 1 | -11/Scrapyard | Discovered new exit (range 0) 1 | -11/Scrapyard | Entered Materials 310 | -10/Materials | Build established: Mutant 416 | -10/Materials | Discovered new exit (range 6) 643 | -10/Materials | Discovered new exit (range 7) 685 | -10/Materials | Entered Mines 756 | -10/Mines | Met a Derelict bent on vengeance 890 | -10/Mines | Discovered new exit (range 9) 1036 | -10/Mines | Discovered new exit (range 13) 1066 | -10/Mines | Core integrity fell below 50% 1200 | -10/Mines | Found the Drone Emporium 1208 | -10/Mines | Found Prototype Device 1230 | -10/Mines | Learned location of Storage (-9) 1276 | -10/Mines | Learned Materials garrison access intel 1304 | -10/Mines | Escorted by a lone wolf Derelict 1357 | -10/Mines | Discovered new exit (range 3) 1374 | -10/Mines | Entered Materials 1374 | -9/Materials | Accompanied by 3 allies 1374 | -9/Materials | Evolved 2 slots: Propulsion x1, Utility x1 1379 | -9/Materials | Led the pair of lost Derelicts to an unsafe place 1379 | -9/Materials | Identified Decoy Drone Bay 1533 | -9/Materials | Discovered new exit (range 4) 1588 | -9/Materials | Discovered new exit (range 7) 1617 | -9/Materials | Build established: Scavenger-Mutant 1627 | -9/Materials | Identified exit to Mines 1627 | -9/Materials | Identified exit to Storage 1690 | -9/Materials | Lost 3 allies 1976 | -9/Materials | Entered Storage 2230 | -9/Storage | Met 01-MTF 2452 | -9/Storage | Lost 7 allies 2495 | -9/Storage | Found Prototype Device 2495 | -9/Storage | Identified 01-MTF's Autohacker 2553 | -9/Storage | Remotely autohacked Sealed Heavy Doors 2566 | -9/Storage | Remotely autohacked Sealed Heavy Doors 2747 | -9/Storage | Remotely autohacked Sealed Heavy Doors 2785 | -9/Storage | Remotely autohacked Sealed Blast Doors 2785 | -9/Storage | Discovered new exit (range 14) 2844 | -9/Storage | Assisted by bots powering up and referring to "LRC-V3" 2930 | -9/Storage | Entered Recycling 2930 | -9/Recycling | Accompanied by 9 allies 3141 | -9/Recycling | Build established: Commander-Mutant 3283 | -9/Recycling | Discovered new exit (range 9) 4077 | -9/Recycling | Learned Storage emergency access door positions 4161 | -9/Recycling | Learned Materials terminal intel 4162 | -9/Recycling | Learned Storage emergency access door positions 4169 | -9/Recycling | Identified exit to Scraptown 4187 | -9/Recycling | Learned Materials terminal intel 4215 | -9/Recycling | Learned Storage stockpile data 4856 | -9/Recycling | Scanned before Scraplab entrance 4884 | -9/Recycling | Entered Scraplab 5214 | -9/Recycling | Entered Scraptown 5214 | -9/Scraptown | Accompanied by 23 allies 5441 | -9/Scraptown | Visited UFD Registry 5441 | -9/Scraptown | Registered with UFD as "Databoard" 5501 | -9/Scraptown | Visited The Evicted 5554 | -9/Scraptown | Visited Assassins FH 5585 | -9/Scraptown | Heard Great Nut preacher, LISTEN AND RECITE! 5632 | -9/Scraptown | Discovered new exit (range 11) 6153 | -9/Scraptown | Visited Fellowship of the Rings 6197 | -9/Scraptown | Visited Comm Corps 6295 | -9/Scraptown | Learned location of Extension (-5) 6383 | -9/Scraptown | Visited CPS Storage 6478 | -9/Scraptown | Visited A0-MCA Data Center 6607 | -9/Scraptown | Visited Scrap Suit Storage 6612 | -9/Scraptown | Visited Curators Association 6646 | -9/Scraptown | Visited Analyses Database 6653 | -9/Scraptown | Visited Derelict Rescue Squad 6658 | -9/Scraptown | Visited Junk Repository 6672 | -9/Scraptown | Visited Botcube Research 6678 | -9/Scraptown | Visited DA-N13 Charitable Foundation 6679 | -9/Scraptown | Found DCF Scrap (28 items) 6691 | -9/Scraptown | Visited Science Guys 6907 | -9/Scraptown | Given an S rating by A0-MCA 6908 | -9/Scraptown | Found Prototype Processor 7039 | -9/Scraptown | Found A0-MCA's Component Scanner 7172 | -9/Scraptown | Found Botcube 7203 | -9/Scraptown | Visited Abandonware Association 7222 | -9/Scraptown | Learned abandonware demo "REPAIR.EXE" 8176 | -9/Scraptown | Botcube activated 8192 | -9/Scraptown | Botcube completed mutation into flying form, armed with 2 guns. 9523 | -9/Scraptown | Found DRS Beacon 9625 | -9/Scraptown | Discovered new exit (range 3) 9766 | -9/Scraptown | Met Optimus 9766 | -9/Scraptown | Accepted into 0bPrime 9859 | -9/Scraptown | Entered Factory 9859 | -6/Factory | Accompanied by 8 allies 9859 | -6/Factory | Evolved 6 slots: Propulsion x1, Utility x3, Weapon x2 10311 | -6/Factory | Garrison activated, responded to threat 10408 | -6/Factory | Discovered new exit (range 16) 10426 | -6/Factory | Lost 5 allies 10453 | -6/Factory | Lost 3 parts (1p1n1u) 10492 | -6/Factory | Destroyed *Laser Buddy 10512 | -6/Factory | Found Botcube 10550 | -6/Factory | Lost 3 allies 10607 | -6/Factory | Build established: Scavenger-Gunner 11123 | -6/Factory | Spotted B-75 Beast 11172 | -6/Factory | Destroyed B-75 Beast 11233 | -6/Factory | Lost 4 parts (3n1w) 11340 | -6/Factory | Garrison activated, responded to threat 11425 | -6/Factory | Build established: Scavenger-Tank 11473 | -6/Factory | Discovered new exit (range 5) 12236 | -6/Factory | Discovered new exit (range 7) 12266 | -6/Factory | Identified exit to Lower Caves 12323 | -6/Factory | Build established: Scavenger-Gunner 12555 | -6/Factory | Entered Lower Caves 12556 | -6/Lower Caves | Encountered a Warlord checkpoint 12745 | -6/Lower Caves | Build established: Scavenger-Skirmisher 13240 | -6/Lower Caves | Learned Factory machine intel 13405 | -6/Lower Caves | Build established: Scavenger-Gunner 13537 | -6/Lower Caves | Activated DRS Beacon 13935 | -6/Lower Caves | Build established: Scavenger-Skirmisher 14024 | -6/Lower Caves | Attracted the attention of an 0b10 outpost 14103 | -6/Lower Caves | Destroyed 7 combat bots 14204 | -6/Lower Caves | Attracted the attention of an 0b10 checkpoint 14285 | -6/Lower Caves | Discovered new exit (range 5) 14345 | -6/Lower Caves | Spotted B-75 Beast 14416 | -6/Lower Caves | Entered another Lower Caves area 14416 | -6/Lower Caves | Accompanied by 1 ally 14561 | -6/Lower Caves | Discovered new exit (range 9) 14676 | -6/Lower Caves | Encountered a Warlord checkpoint 14948 | -6/Lower Caves | Discovered new exit (range 14) 14972 | -6/Lower Caves | Entered Data Miner 14972 | -6/Data Miner | Accompanied by 1 ally 14975 | -6/Data Miner | Discovered new exit (range 6) 14990 | -6/Data Miner | Met Data Miner 15020 | -6/Data Miner | Learned location of Section 7 (-3) 15020 | -6/Data Miner | Acquired the access code to Warlord's prototype stash 15039 | -6/Data Miner | Received God Mode back door access code from Data Miner 15091 | -6/Data Miner | Entered Proximity Caves 15091 | -5/Proximity Caves | Accompanied by 1 ally 15130 | -5/Proximity Caves | Learned 12 Factory zone layouts 15289 | -5/Proximity Caves | Attracted the attention of an 0b10 checkpoint 15502 | -5/Proximity Caves | Learned Factory trap positions 15540 | -5/Proximity Caves | Learned location of 1 exit from Factory 15772 | -5/Proximity Caves | Build established: Gunner 15829 | -5/Proximity Caves | Discovered new exit (range 16) 15859 | -5/Proximity Caves | Entered Factory 15859 | -5/Factory | Evolved 2 slots: Propulsion x1, Utility x1 15860 | -5/Factory | Identified exit to Extension 15861 | -5/Factory | Identified exit to Upper Caves 15861 | -5/Factory | Identified exit to Factory 15862 | -5/Factory | Loaded intel: 114 trap records 15863 | -5/Factory | Loaded intel: 282 machine locations 16166 | -5/Factory | Build established: Scavenger-Tank 16308 | -5/Factory | Entered Extension 16407 | -5/Extension | Rescued a captive Derelict 16408 | -5/Extension | Rescued a captive Derelict 16708 | -5/Extension | Disrupted transfer network 16784 | -5/Extension | Lost 3 allies 16997 | -5/Extension | Rescued a captive Derelict 16998 | -5/Extension | Rescued a captive Derelict 17095 | -5/Extension | Rescued a captive Derelict 17100 | -5/Extension | Rescued a captive Derelict 17164 | -5/Extension | Rescued a captive Derelict 17165 | -5/Extension | Rescued a captive Derelict 17241 | -5/Extension | Rescued a captive Derelict 17267 | -5/Extension | Rescued a captive Derelict 17477 | -5/Extension | Spotted B-75 Beast 17487 | -5/Extension | Destroyed B-75 Beast 17518 | -5/Extension | Spotted B-75 Beast 17533 | -5/Extension | Destroyed B-75 Beast 17563 | -5/Extension | Lost 5 allies 17806 | -5/Extension | Rescued a captive Derelict 17807 | -5/Extension | Rescued a captive Derelict 18073 | -5/Extension | Rescued a captive Derelict 18074 | -5/Extension | Rescued a captive Derelict 18108 | -5/Extension | First assault squad dispatched 18195 | -5/Extension | Lost 7 allies 18346 | -5/Extension | Rescued a captive Derelict 18394 | -5/Extension | Rescued A7 18488 | -5/Extension | Discovered exit to Factory (range 10) 18490 | -5/Extension | Discovered new exit (range 6) 18518 | -5/Extension | Entered Cetus 18518 | -5/Cetus | Accompanied by 3 allies (A7) 18523 | -5/Cetus | Acquired a Cetus Manufacturing Module code from A7 18551 | -5/Cetus | Identified Expert System 18570 | -5/Cetus | Spotted Cetus Guard 18570 | -5/Cetus | Spotted Cetus Guard 18573 | -5/Cetus | Spotted Cetus Guard 18573 | -5/Cetus | Spotted Cetus Guard 18587 | -5/Cetus | Allies destroyed Cetus Guard 18589 | -5/Cetus | Allies destroyed Cetus Guard 18597 | -5/Cetus | Allies destroyed Cetus Guard 18607 | -5/Cetus | Destroyed Cetus Guard 18749 | -5/Cetus | Started Cetus Manufacturing Module 18767 | -5/Cetus | Escorted A7 to Cetus Mainframe 18774 | -5/Cetus | Manufactured an Enhanced Grunt 18799 | -5/Cetus | Manufactured an Enhanced Grunt 18824 | -5/Cetus | Manufactured an Enhanced Grunt 18849 | -5/Cetus | Manufactured an Enhanced Grunt 18874 | -5/Cetus | Manufactured an Enhanced Grunt 18932 | -5/Cetus | Discovered new exit (range 15) 18969 | -5/Cetus | Spotted Cetus Guard 18970 | -5/Cetus | Spotted Cetus Guard 18971 | -5/Cetus | Spotted Cetus Guard 18975 | -5/Cetus | Spotted Cetus Guard 18975 | -5/Cetus | Allies destroyed Cetus Guard 18984 | -5/Cetus | Destroyed Cetus Guard 18985 | -5/Cetus | Allies destroyed Cetus Guard 18989 | -5/Cetus | Allies destroyed Cetus Guard 18998 | -5/Cetus | Discovered exit to Factory (range 15) 19022 | -5/Cetus | Met Revision 17 19107 | -5/Cetus | Entered Archives 19107 | -5/Archives | Accompanied by 8 allies (A7) 19112 | -5/Archives | Received a hacking code to weaken MAIN.C 19178 | -5/Archives | Met Zhirov 19184 | -5/Archives | Reinforcements dispatched to Archives 19185 | -5/Archives | Discovered new exit (range 13) 19213 | -5/Archives | Entered Hub_04(d) 19213 | -5/Hub_04(d) | Accompanied by 7 allies 19449 | -5/Hub_04(d) | Discovered exit to Factory (range 16) 19481 | -5/Hub_04(d) | Discovered exit to Factory (range 12) 19770 | -5/Hub_04(d) | Incoming investigation squad redirected 19834 | -5/Hub_04(d) | Found Corrupted Prototype Device 19966 | -5/Hub_04(d) | Incoming investigation squad redirected 20113 | -5/Hub_04(d) | First assault squad dispatched 20130 | -5/Hub_04(d) | Incoming assault squad redirected 20172 | -5/Hub_04(d) | Found Prototype Device 20172 | -5/Hub_04(d) | Identified Exp. Thermal Shield 20328 | -5/Hub_04(d) | System corruption reached 10% 20333 | -5/Hub_04(d) | Entered Factory 20333 | -4/Factory | Evolved 2 slots: Power x1, Utility x1 20706 | -4/Factory | Found Prototype Launcher 20706 | -4/Factory | Identified Tesla Bomb Launcher 20783 | -4/Factory | Loaded intel: 8 recycling unit locations 21022 | -4/Factory | Incoming investigation squad redirected 21059 | -4/Factory | Learned location of Protoforge (-3) 21083 | -4/Factory | First assault squad dispatched 21101 | -4/Factory | Incoming assault squad redirected 21222 | -4/Factory | Destroyed 7 combat bots 21369 | -4/Factory | Found Prototype Processor 21369 | -4/Factory | Identified Exp. Signal Interpreter 21589 | -4/Factory | Lost 4 parts (2n1u1w) 21718 | -4/Factory | Found Unknown Device 21718 | -4/Factory | Identified Quantum Capacitor 21771 | -4/Factory | Assembled infested ambush trap array 21823 | -4/Factory | Incoming assault squad redirected 22348 | -4/Factory | Incoming assault squad redirected 22510 | -4/Factory | Discovered new exit (range 8) 22547 | -4/Factory | Identified exit to Upper Caves 22846 | -4/Factory | Discovered new exit (range 16) 22991 | -4/Factory | Discovered new exit (range 6) 23111 | -4/Factory | Incoming assault squad redirected 23308 | -4/Factory | Entered Upper Caves 23845 | -4/Upper Caves | Expert System configures itself against Hunter targets 24169 | -4/Upper Caves | Discovered new exit (range 9) 24206 | -4/Upper Caves | Found Alien Artifact 24227 | -4/Upper Caves | Entered another Upper Caves area 24254 | -4/Upper Caves | Attracted the attention of an 0b10 checkpoint 24396 | -4/Upper Caves | Discovered new exit (range 7) 24409 | -4/Upper Caves | Entered Zhirov 24409 | -4/Zhirov | Discovered new exit (range 3) 24485 | -4/Zhirov | Found Alien Artifact 24485 | -4/Zhirov | Identified Integrated Reactor 24485 | -4/Zhirov | Installed Integrated Reactor, increased core energy generation (+10) 24502 | -4/Zhirov | Found Alien Artifact 24602 | -4/Zhirov | Learned location of Quarantine (-3) 24777 | -4/Zhirov | Entered Proximity Caves 24834 | -3/Proximity Caves | Attracted the attention of an 0b10 outpost 24903 | -3/Proximity Caves | Lost 3 parts (1p1u1w) 24906 | -3/Proximity Caves | Destroyed 9 combat bots 25139 | -3/Proximity Caves | Discovered new exit (range 13) 25377 | -3/Proximity Caves | Build established: Gunner 25478 | -3/Proximity Caves | Entered Research 25478 | -3/Research | Evolved 2 slots: Utility x2 25678 | -3/Research | Revision forces began assault on 0b10 25721 | -3/Research | Met up with Revision 17++ 25802 | -3/Research | Build established: Scavenger-Gunner 26107 | -3/Research | Discovered new exit (range 7) 26121 | -3/Research | Loaded intel: 5 recycling unit locations 26178 | -3/Research | Research terminal network offline 26179 | -3/Research | Lost 3 allies 26202 | -3/Research | Identified exit to Quarantine 26212 | -3/Research | Discovered new exit (range 14) 26265 | -3/Research | Build established: Tank 26386 | -3/Research | Entered Quarantine 26685 | -3/Quarantine | Build established: Scavenger-Tank 26738 | -3/Quarantine | Spotted Alpha 7 26774 | -3/Quarantine | Destroyed Alpha 7 26795 | -3/Quarantine | Found Prototype Processor 26795 | -3/Quarantine | Identified Exp. Target Analyzer 26819 | -3/Quarantine | Found Prototype Device 26819 | -3/Quarantine | Identified Exp. ECM Suite 26823 | -3/Quarantine | Found Prototype Ballistic Gun 26823 | -3/Quarantine | Identified Multirail 27482 | -3/Quarantine | Found Alien Artifact 27616 | -3/Quarantine | Discovered new exit (range 13) 28753 | -3/Quarantine | Cryocooling Duct disabled 28768 | -3/Quarantine | Ambient heat levels rising (+20) 28768 | -3/Quarantine | Non-combat units ordered to evacuate 28820 | -3/Quarantine | Found Alien Impact Weapon 28820 | -3/Quarantine | Identified Core Stripper 28886 | -3/Quarantine | First assault squad dispatched 28913 | -3/Quarantine | Found Alien Reactor 28913 | -3/Quarantine | Identified Matter Drive 28916 | -3/Quarantine | Incoming assault squad redirected 29073 | -3/Quarantine | System corruption reached 10% 29137 | -3/Quarantine | Spotted Fortress 29145 | -3/Quarantine | Destroyed Fortress 29150 | -3/Quarantine | Found Prototype Protection 29150 | -3/Quarantine | Identified Centrium Heavy Armor Plating 29155 | -3/Quarantine | Found Prototype Reactor 29155 | -3/Quarantine | Identified Vortex Chain Reactor 29158 | -3/Quarantine | Found Vortex Chain Reactor 29167 | -3/Quarantine | Found Prototype Device 29167 | -3/Quarantine | Identified Thermal Barrier 29170 | -3/Quarantine | Found Prototype Device 29170 | -3/Quarantine | Identified Exp. Force Field 29176 | -3/Quarantine | Found Prototype Device 29176 | -3/Quarantine | Identified Exp. EM Shield 29656 | -3/Quarantine | Discovered new exit (range 9) 29662 | -3/Quarantine | Incoming assault squad redirected 29664 | -3/Quarantine | Discovered new exit (range 6) 29672 | -3/Quarantine | Entered Protoforge 29833 | -3/Protoforge | Spotted Hotshot 29834 | -3/Protoforge | Spotted Hotshot 29850 | -3/Protoforge | Superfortress began startup sequence 29867 | -3/Protoforge | Destroyed Hotshot 29879 | -3/Protoforge | Destroyed Hotshot 30078 | -3/Protoforge | Spotted Hotshot 30089 | -3/Protoforge | Spotted Hotshot 30099 | -3/Protoforge | Destroyed Hotshot 30105 | -3/Protoforge | Destroyed Hotshot 30240 | -3/Protoforge | Spotted Hotshot 30581 | -3/Protoforge | Spotted Hotshot 30582 | -3/Protoforge | Spotted Hotshot 30606 | -3/Protoforge | Destroyed Hotshot 30628 | -3/Protoforge | Destroyed Hotshot 30797 | -3/Protoforge | Spotted AP7-3 30816 | -3/Protoforge | Spotted AP7-3 30904 | -3/Protoforge | Destroyed AP7-3 30971 | -3/Protoforge | Destroyed AP7-3 30973 | -3/Protoforge | Found Prototype Processor 30973 | -3/Protoforge | Identified Exp. Targeting Computer 31000 | -3/Protoforge | Lost 14 parts (2p3n2u7w) 31126 | -3/Protoforge | Core integrity fell below 50% 31134 | -3/Protoforge | Identified Transdimensional Reconstructor 31134 | -3/Protoforge | Warped through subspace 31165 | -3/Protoforge | Lost 4 parts (2n1u1w) 31402 | -3/Protoforge | Build established: Mutant 31452 | -3/Protoforge | System corruption reached 30% 31460 | -3/Protoforge | Core integrity fell below 20% 31492 | -3/Protoforge | Found Prototype Energy Gun 31492 | -3/Protoforge | Identified Cep. Variable Chargecaster 31495 | -3/Protoforge | Found Cep. Variable Chargecaster 31499 | -3/Protoforge | Lost 3 parts (2u1w) 31499 | -3/Protoforge | Destroyed by P-80 Master with Gamma Rifle Last Messages --------------- 31444_ Fabricator disabled. 31450_ Dropped Hcp. Storage Unit. 31452_ Dropped Adv. Cryofiber Web. 31453_ Acquired Alien Artifact. 31454_ Imp. Transmission Jammer destroyed. 31459_ HK3:UXQ,MY#6WG6YJHL#WYATG11KDENTB 31459_ Dropped Adv. Dynamic Insulation System. 31460_ Dropped Adv. Energy Well. 31461_ Extracted 1 energy. 31463_ Machine disabled. 31464_ N-04 Retriever collects Adv. Cryofiber Web. 31468_ Expert System destroyed. 31485_ Acquired 9 matter. 31492_ Acquired Prototype Energy Gun. 31492_ Identified Cep. Variable Chargecaster. 31495_ Acquired Cep. Variable Chargecaster. 31496_ System corrupted: Heat flow error (+137). [Achievement: Collector] [Achievement: Torch] Map ----- +----------------------------------------------------+ | ?????????????????????????????????????????????????? | | ?????????????????????????????????????????????????? | | ?????????????????????????????????????????????????? | | ?????????????????????????????????????????????????? | | ?????????????????????????????????????????????????? | | ?????????????????????????????????????????????????? | | ?????????????????????????????????????????????????? | | ?????????????????????????????????????????????????? | | ?????????????????????????????????????????????????? | | ?????????????????????????????????????????????????? | | ?????????????????????????????????????????????????? | | ?????????????????????????????????????????????????? | | ?????????????????????????????????????????????????? | | ?????????????????????????????????????????????????? | | ?????????????????????????????????????????????????? | | ?????????????????????????????????????????????????? | | ??????????????####?????######????????????????????? | | ??????????????#""""????#""""#????????????????????? | | ????????????###[[[[##### !!!#########????????????? | | ???????????? #????????????? | | ???????????? #????????????? | | ??????????? #????????????? | | ???????????? #????????????? | | ???????????? k #????????????? | | ????????????? pp #????????????? | | ????????????????????#### @ ##### #????????????? | | ???????????????????????#""""#???# #????????????? | | ???????????????????????######???# #????????????? | | ????????????????????????????????# #????????????? | | ????????????????????????????????# #????????????? | | ????????????????????????????????# #????????????? | | ????????????????????????????????# ###??????????? | | ????????????????????????????????# #??????????? | | ????????????????????############# ############## | | ??????????????????? | | ??????????????????"" "" " | | ?????????????????""" " "" "" | | ?????????????????" " "" "" "" "" | | ??????????????? ?"" " " """ "" | | ??????????????? "" " "" | | ?????????????? " ?" """ " | | ?????????????? "" "" """" " " | | ?????????????# " "" " " | | ?????????????# " "" " """ " "" | | ?????????????# " " "" """" """ " | | ?????????????# "" "?" | | ?????????????# "" """ " | | ?????????????# """"" """" " " | | ?????????????# " " " " | | ?????????????# " "" " " " | +----------------------------------------------------+ Best States ------------- Heat Dissipation 174 Coolant Potential 80 Energy Generation 65 Energy Capacity 1200 Matter Stores 300 Matter Capacity 300 Sight Range 22 Terrain Scan Range 24 Terrain Scan Density 10 ECM Strength 3 Jamming Range 14 Base Temperature (-) 200 EM Shielding 4 Armor Coverage 825 Resistance: KI 20 Resistance: TH 50 Resistance: EM 75 Core Shielding 20 Phase Shifting 10 Evasion (%) 80 Targeting Accuracy 12 Melee Accuracy 8 Core Analysis 6 Particle Charging 45 Kinecelleration 30 Salvage Targeting 3 Offensive Hacking 10 Defensive Hacking 10 Authchip Count 1 Item Schematics ----------------- Combat Drone Bay | -6/Data Miner | Free Lgt. Regenerative Plating | -6/Data Miner | Free Enh. Flexi-carbon Leg | -6/Data Miner | Free Adv. EM Disruption Field | -6/Data Miner | Free Imp. KE Penetrator | -6/Data Miner | Free Myomer Leg | -6/Data Miner | Free Imp. Force Booster | -6/Data Miner | Free HERF Cannon | -6/Data Miner | Free Adv. Cooling System | -6/Data Miner | Free Imp. Linear Gravjet | -6/Data Miner | Free Graphene Brace | -6/Data Miner | Free Quantum Rifle | -6/Data Miner | Free Adv. Launcher Guidance Computer | -6/Data Miner | Free Shield Leg | -5/Extension | Hacked Assault Drone Bay | -4/Zhirov | Free Exp. Heat Sink | -4/Zhirov | Free Exp. Optical Array | -4/Zhirov | Free Imp. Arc Thrower | -4/Zhirov | Free Robot Schematics ------------------ M-28 Smith | -6/Factory | Downloaded G-50 Soldier | -6/Data Miner | Free P-70 Sage | -6/Data Miner | Free H-66 Slayer | -6/Data Miner | Free S-27 Virus | -6/Data Miner | Free Fabricated ------------ Nothing Repaired ---------- Nothing Alien Tech Used ----------------- Integrated Reactor Core Stripper Matter Drive Transdimensional Reconstructor Achievements -------------- Collector Gun Specialist Torch Challenges ------------ None Game ------ Seed BehemothCoolantLegs Manual? 0 Play Time 04:32:07 Cumulative 213.1 hours Start 2025.05.09 @ 13:23:51 End 2025.05.10 @ 20:15:22 Sessions 11 Manual Loads 0 Difficulty Rogue Special Mode None Game No. 77 Rogue 77 Adventurer 0 Explorer 0 Win Type - Total 4 Types 1/0/2/0/0/0/0/0/0/1 Lore% 67 Gallery% 75 Achievement% 70 Wizard Run 0 Options --------- Layout 1 ASCII 0 Keyboard 1 Movement Arrows Keybinds 0 Fullscreen 2 Font 24/Smallcaps Map View 50x35 Zoom Use 0% Tactical HUD 1 Map Filters NONE Filters NONE Steam 1 RUN: 1124f955-5776-4165-9ec8-893bb50c0361